bitfinex/quotes_ETHUSD_20250430
["timestamp","ask_amount","ask_price","bid_price","bid_amount"]
[1746045382795,4.50888184,1803.9,1803.8,0.16702967]
[1746045383414,4.50888184,1803.9,1803.7,5.54407118]
[1746045383618,4.50888184,1803.9,1803.8,0.16811146]
[1746045385722,6.81093272,1803.9,1803.8,0.16811146]
[1746045386091,6.37138179,1803.7,1803.4,4.915]
[1746045387318,0.8271,1803.7,1803.4,10.46004498]
[1746045387519,0.8271,1803.7,1803.4,10.45993111]
[1746045387727,6.37237566,1803.4,1803.1,5.684]
[1746045387900,6.37237566,1803.4,1803.1,4.915]
[1746045388315,5.54546155,1803.3,1803.1,4.915]
[1746045388492,5.54569653,1803.2,1803.0,0.406936]
[1746045388694,5.54559388,1803.3,1803.0,0.406936]
[1746045388907,7.56409896,1803.4,1803.0,5.95321263]
[1746045389104,5.54540526,1803.3,1803.0,0.406936]
[1746045389410,5.5460041,1803.1,1803.0,0.406936]
[1746045389812,7.20248691,1803.2,1803.0,0.406936]
[1746045390016,0.31093824,1803.1,1803.0,0.406936]
[1746045391143,5.85694234,1803.1,1803.0,0.406936]
[1746045391634,6.65334234,1803.1,1803.0,0.406936]
[1746045392823,0.31093824,1803.1,1803.0,0.406936]
[1746045394116,0.31093824,1803.1,1803.0,6.62989162]
[1746045394643,4.50888184,1803.2,1803.1,5.5460041]
[1746045394819,4.50888184,1803.2,1803.0,12.17599288]
[1746045395037,4.50888184,1803.2,1803.0,6.62968118]
[1746045395219,4.50888184,1803.2,1803.1,6.3521041]
[1746045395418,4.50888184,1803.5,1803.2,5.54553384]
[1746045395738,4.50888184,1803.5,1803.2,5.54550221]
[1746045396248,4.50888184,1803.5,1803.2,11.09101544]
[1746045396446,4.50888184,1803.5,1803.2,5.54550221]
[1746045396611,4.50888184,1803.5,1803.3,5.54538032]
[1746045396809,4.50888184,1803.5,1803.3,5.54518393]
[1746045397044,4.50888184,1803.5,1803.4,0.7945]
[1746045397549,0.8245,1803.4,1803.1,12.5599614]
[1746045397761,5.54548781,1803.3,1803.1,4.916]
[1746045398565,5.54569653,1803.2,1803.1,4.916]
[1746045398862,5.5460041,1803.1,1803.0,0.406936]
[1746045399416,5.5460041,1803.1,1803.0,0.52020455]
[1746045399640,5.85611875,1803.1,1803.0,0.52020455]
[1746045400352,7.52963846,1803.1,1803.0,0.52020455]
[1746045401150,12.8479203,1803.1,1803.0,0.52020455]
[1746045403015,12.8479203,1803.1,1803.0,1e-08]
[1746045403016,16.3979203,1803.1,1803.0,1e-08]
[1746045403213,16.3979203,1803.1,1802.2,4.873]
[1746045403214,6.38045595,1802.5,1802.2,4.873]
[1746045403550,5.34128184,1802.5,1802.3,0.10711216]
[1746045403746,10.88932711,1802.5,1802.3,0.10711216]
[1746045404651,4.50888184,1802.5,1802.3,0.10711216]
[1746045405352,4.49680899,1802.5,1802.3,0.90971216]
[1746045405742,4.49680899,1802.5,1802.3,6.4581596]
[1746045406056,4.49680899,1802.5,1802.3,7.65883027]
[1746045406252,4.49680899,1802.5,1802.3,2.11038283]
[1746045406430,4.49680899,1802.5,1802.4,5.54815801]
[1746045406631,4.49680899,1802.5,1802.4,11.31370116]
[1746045407747,4.49680899,1802.5,1802.4,5.76554315]
[1746045407925,4.49680899,1802.5,1802.4,11.31370116]
[1746045410761,10.04329946,1803.0,1802.6,5.54742156]
[1746045410934,10.04329946,1803.0,1802.6,11.09475683]
[1746045411137,0.30998032,1802.9,1802.7,0.11137767]
[1746045411448,0.30998032,1802.9,1802.8,0.11130989]
[1746045411645,0.30998032,1802.9,1802.7,6.31181868]
[1746045411851,0.30998032,1802.9,1802.8,0.11130989]
[1746045412030,10.04329946,1803.0,1802.8,0.11130989]
[1746045412230,4.49680899,1803.0,1802.9,5.54661933]
[1746045412425,6.34086951,1803.3,1802.9,5.65786146]
[1746045412426,4.49680899,1803.2,1802.9,5.65786146]
[1746045412626,4.49680899,1803.2,1803.1,5.5460041]
[1746045412827,4.49680899,1803.2,1803.1,5.65549003]
[1746045413027,4.49680899,1803.2,1803.1,6.85230787]
[1746045414133,4.49680899,1803.5,1803.3,5.54529282]
[1746045414334,4.49680899,1803.5,1803.2,5.54564247]
[1746045414335,4.49680899,1803.5,1803.2,10.41949956]
[1746045414534,4.49680899,1803.5,1803.4,0.10928271]
[1746045414758,4.49680899,1803.5,1803.2,10.41949773]
[1746045415098,4.49680899,1803.5,1803.3,0.10935044]
[1746045415269,0.31042103,1803.4,1803.3,0.10935044]
[1746045415958,0.31042103,1803.4,1803.3,5.65473944]
[1746045417246,4.49680899,1803.5,1803.3,5.65473944]
[1746045417434,0.8115,1803.4,1803.3,0.10935044]
[1746045417634,4.49680899,1803.5,1803.3,0.10935044]
[1746045418036,4.49680899,1803.5,1803.3,5.65453647]
[1746045418232,4.49680899,1803.5,1803.4,5.54508151]
[1746045418437,4.49680899,1803.5,1803.4,5.65436422]
[1746045418753,4.80748729,1803.5,1803.4,5.65436422]
[1746045419184,4.80748729,1803.5,1803.4,0.10928271]
[1746045419550,4.80748729,1803.5,1803.3,5.54525208]
[1746045419891,4.80748729,1803.5,1803.4,0.10928271]
[1746045420183,4.80748729,1803.5,1803.0,1.5813]
[1746045420184,5.54547556,1803.3,1803.0,5.5462788]
[1746045420403,0.3106783,1803.2,1803.0,5.5462788]
[1746045420552,0.3106783,1803.2,1802.9,10.41941436]
[1746045420756,4.80748729,1803.2,1802.9,15.96583961]
[1746045421367,4.80748729,1803.2,1802.9,10.41941436]
[1746045421688,4.49680899,1803.2,1802.9,15.96584298]
[1746045421899,4.49680899,1803.2,1802.9,15.96587864]
[1746045422393,4.49680899,1803.2,1802.9,10.41941436]
[1746045422558,4.49680899,1803.2,1803.0,5.54630826]
[1746045423102,4.49680899,1803.2,1803.1,5.5460041]
[1746045423257,4.49680899,1803.2,1803.1,6.3164041]
[1746045425990,6.04459435,1803.6,1803.3,5.54535506]
[1746045425991,4.49680899,1803.5,1803.3,5.54535506]
[1746045426297,0.31056329,1803.4,1803.3,5.54535506]
[1746045429300,0.31056329,1803.4,1803.3,5.65114101]
[1746045429605,0.31056329,1803.4,1803.3,6.77082467]
[1746045430130,4.48877576,1803.5,1803.3,6.77082467]
[1746045430402,4.48877576,1803.5,1803.3,5.65100303]
[1746045430701,4.48877576,1803.5,1803.4,6.33368151]
[1746045430876,4.48877576,1803.5,1803.4,0.91436042]
[1746045431063,4.79926917,1803.5,1803.4,6.45944193]
[1746045431265,4.79926917,1803.5,1803.4,0.12576042]
[1746045431602,4.79926917,1803.5,1803.3,5.54516551]
[1746045431783,0.31049341,1803.5,1803.4,0.12576042]
[1746045432187,0.31049341,1803.5,1803.2,7.13410729]
[1746045432367,1.12619341,1803.5,1803.4,0.12563086]
[1746045432567,1.12619341,1803.5,1803.2,6.33410729]
[1746045432876,0.31049341,1803.5,1803.3,5.67108157]
[1746045433272,16.8937019,1803.6,1803.3,0.12571213]
[1746045433503,12.48383881,1803.6,1803.3,0.12571213]
[1746045433706,4.98877576,1803.6,1803.4,5.54498363]
[1746045433929,4.98877576,1803.6,1803.5,5.69984833]
[1746045434215,5.29934833,1803.6,1803.5,0.15507428]
[1746045435381,10.84381495,1803.6,1803.3,10.38220845]
[1746045435990,0.31057257,1803.5,1803.3,10.53724298]
[1746045436299,0.31057257,1803.5,1803.4,6.35978151]
[1746045436909,4.98877576,1803.6,1803.4,11.90466869]
[1746045437216,4.98877576,1803.6,1803.3,6.52413694]
[1746045437217,4.98877576,1803.6,1803.3,10.38221139]
[1746045437512,4.98877576,1803.6,1803.3,10.38227502]
[1746045437513,5.75657576,1803.6,1803.3,10.38227502]
[1746045438511,5.75657576,1803.6,1803.3,10.38220445]
[1746045438708,5.75657576,1803.6,1803.3,4.837]
[1746045439014,0.31110572,1803.5,1803.4,5.54507702]
[1746045439483,0.31110572,1803.5,1803.3,10.38218835]
[1746045440079,0.31110572,1803.5,1803.3,15.92737631]
[1746045440279,0.31110572,1803.4,1803.3,10.38218707]
[1746045440479,0.30340571,1803.4,1803.3,12.05270691]
[1746045441193,4.98877576,1803.6,1803.3,12.05270691]
[1746045443289,4.98877576,1803.6,1803.3,10.38218707]
[1746045443485,5.54554021,1803.3,1803.0,5.6394]
[1746045443787,5.54554021,1803.3,1803.0,11.18564684]
[1746045444008,10.03431597,1803.3,1803.0,4.837]
[1746045444188,5.54589912,1803.2,1803.0,4.837]
[1746045444393,0.8086,1803.1,1803.0,4.837]
[1746045445215,5.54589912,1803.2,1803.0,4.837]
[1746045445786,10.81181597,1803.3,1803.0,4.837]
[1746045446622,5.5457141,1803.2,1803.0,4.837]
[1746045446997,5.5457141,1803.2,1803.1,0.12516227]
[1746045447199,22.03091413,1803.2,1803.1,0.12516227]
[1746045447395,16.0416413,1803.2,1803.1,0.12516227]
[1746045447722,5.54616459,1803.1,1802.6,5.54749607]
[1746045447884,5.54644804,1803.0,1802.6,11.09482353]
[1746045448093,10.03494035,1803.1,1802.7,1.10948235]
[1746045448282,10.03494035,1803.1,1802.7,12.20374592]
[1746045448481,4.48877576,1803.1,1802.7,7.46319673]
[1746045448893,4.48877576,1803.1,1802.9,5.54646314]
[1746045450523,4.48877576,1803.1,1802.9,11.09286892]
[1746045450703,4.48877576,1803.3,1803.0,5.54630153]
[1746045451025,6.36666163,1803.4,1803.0,6.30990153]
[1746045451322,11.91199163,1803.4,1803.0,6.30990153]
[1746045451616,6.36666163,1803.4,1803.0,0.7636]
[1746045451821,5.54550507,1803.3,1803.0,0.7636]
[1746045452222,5.54550507,1803.3,1803.0,1.50552927]
[1746045452588,5.54550507,1803.3,1803.0,7.05182539]
[1746045453025,0.31119462,1803.2,1803.0,7.05182539]
[1746045453324,0.31119462,1803.2,1803.0,1.50552927]
[1746045453816,0.31119462,1803.1,1803.0,1.50552927]
[1746045454020,0.31119462,1803.1,1803.0,0.74192927]
[1746045454521,0.3023969,1803.1,1803.0,0.74192927]
[1746045456222,0.3023969,1803.1,1802.8,6.36031191]
[1746045456409,5.84849882,1803.1,1802.8,0.8134]
[1746045456615,5.84849882,1803.1,1802.8,5.54687576]
[1746045457291,5.54610192,1803.1,1802.8,5.54687576]
[1746045457915,6.37030192,1803.1,1802.8,5.54687576]
[1746045458326,6.37030192,1803.1,1802.7,7.42402167]
[1746045458513,6.37030192,1803.1,1802.7,7.42418127]
[1746045458514,5.54643136,1803.0,1802.7,7.42418127]
[1746045458710,5.54643136,1803.0,1802.7,12.23318127]
[1746045459512,5.54643136,1803.0,1802.8,0.10850084]
[1746045459718,0.8242,1803.1,1802.8,0.10850084]
[1746045459935,5.54586197,1803.2,1802.8,12.43618725]
[1746045460235,5.54586197,1803.2,1802.8,6.88942056]
[1746045460541,10.85852787,1803.3,1802.9,5.54637705]
[1746045461032,5.54578714,1803.2,1802.9,0.10843307]
[1746045461429,5.54578714,1803.2,1802.8,5.5467845]
[1746045461628,5.54585889,1803.2,1803.0,0.10809526]
[1746045461834,5.54585889,1803.2,1802.9,0.10816302]
[1746045462233,5.54585889,1803.2,1802.8,7.21374324]
[1746045462400,5.54585889,1803.2,1803.0,0.10809526]
[1746045462601,5.54629418,1803.1,1802.7,11.12355203]
[1746045462835,6.29716065,1803.0,1802.8,0.10823079]
[1746045463032,5.54629418,1803.1,1802.8,5.65512604]
[1746045464243,11.09255625,1803.1,1802.8,0.10823079]
[1746045464532,5.54624698,1803.1,1802.8,0.10823079]
[1746045464739,5.54636543,1803.0,1802.8,0.10823079]
[1746045466438,0.31113711,1802.9,1802.8,0.10823079]
[1746045467235,0.31113711,1802.9,1802.8,5.65515779]
[1746045467440,0.31113711,1802.9,1802.8,8.03638328]
[1746045468041,0.31113711,1802.9,1802.8,0.10823079]
[1746045468930,0.31113711,1802.9,1802.8,5.65515779]
[1746045470732,0.31113711,1802.9,1802.8,6.43525779]
[1746045475234,0.31113711,1802.9,1802.8,0.10823079]
[1746045481267,5.85775644,1802.9,1802.8,0.10823079]
[1746045481437,8.30091335,1802.9,1802.8,0.10823079]
[1746045482341,5.54709661,1802.8,1802.4,10.35802713]
[1746045482542,10.02440691,1802.8,1802.4,15.90598657]
[1746045482743,10.02440691,1802.8,1802.4,10.35795944]
[1746045482938,5.85855861,1802.7,1802.4,4.81]
[1746045483250,5.5478502,1802.5,1802.4,4.81]
[1746045483652,5.85898731,1802.5,1802.4,4.81]
[1746045484643,5.85898731,1802.5,1802.1,28.68889273]
[1746045484866,5.85898731,1802.5,1802.1,34.23775469]
[1746045485069,5.85898731,1802.5,1802.1,28.68886196]
[1746045485380,5.8592972,1802.4,1802.1,28.68886196]
[1746045485681,0.31113711,1802.4,1802.1,34.23776787]
[1746045485854,0.31113711,1802.4,1802.1,23.14]
[1746045486183,0.31113711,1802.3,1802.1,34.23768764]
[1746045486885,0.31113711,1802.3,1802.1,34.2377044]
[1746045487180,0.31113711,1802.2,1802.1,28.68882117]
[1746045488174,5.54797839,1802.5,1802.2,5.54868542]
[1746045488175,0.31113711,1802.4,1802.2,5.54868542]
[1746045488679,0.31113711,1802.4,1802.1,28.68882117]
[1746045488878,0.31113711,1802.3,1802.1,28.68882117]
[1746045489080,0.31113711,1802.3,1802.1,34.23774226]
[1746045489283,0.31113711,1802.3,1802.1,28.68882117]
[1746045489682,5.85931916,1802.4,1802.1,28.68882117]
[1746045489870,0.8047,1802.3,1802.1,28.68882117]
[1746045490776,0.31113711,1802.2,1802.1,28.68882117]
[1746045490980,0.31113711,1802.2,1802.1,10.35882117]
[1746045491579,0.31113711,1802.2,1802.1,4.81]
[1746045491878,5.85991083,1802.2,1802.1,4.81]
[1746045492079,5.85991083,1802.2,1801.9,5.54952575]
[1746045492080,5.54929679,1802.1,1801.7,11.14034577]
[1746045492278,5.54929679,1802.1,1801.8,5.54993649]
[1746045492279,10.03807255,1802.1,1801.8,5.54993649]
[1746045492854,0.31113711,1802.0,1801.8,5.54993649]
[1746045493477,0.31113711,1802.0,1801.8,5.54982564]
[1746045493682,4.48877576,1802.1,1801.8,5.54999059]
[1746045493986,5.38877576,1802.1,1801.9,0.15572698]
[1746045494177,10.9378804,1802.1,1801.8,5.54977913]
[1746045494481,6.31068956,1802.0,1801.9,0.10895148]
[1746045494684,10.79946532,1802.0,1801.9,0.10895148]
[1746045494875,5.55000555,1801.8,1801.7,4.809]
[1746045495074,5.54970119,1801.9,1801.7,4.809]
[1746045495272,0.7613,1801.7,1801.6,3.68923907]
[1746045495463,5.25007576,1801.7,1801.6,3.68923907]
[1746045495861,4.48877576,1801.7,1801.6,9.23986073]
[1746045496066,4.48877576,1801.7,1801.6,10.04506073]
[1746045497802,4.48877576,1801.7,1801.6,11.60464638]
[1746045498985,4.48877576,1802.2,1802.0,5.54928023]
[1746045499391,5.38877576,1802.2,1802.0,5.54928023]
[1746045499758,5.38877576,1802.2,1802.0,11.09848177]
[1746045499992,5.38877576,1802.2,1802.0,5.54920154]
[1746045503707,0.31060218,1802.1,1802.0,5.54920154]
[1746045504373,0.31060218,1802.1,1802.0,5.65719703]
[1746045504702,0.31060218,1802.1,1802.0,0.10799549]
[1746045505965,2.21703729,1802.1,1802.0,0.10799549]
[1746045506304,7.76619972,1802.1,1801.8,10.35980458]
[1746045506604,7.76619972,1802.1,1801.9,0.10806333]
[1746045506605,1.09220218,1802.1,1801.9,0.10806333]
[1746045506905,1.09220218,1802.1,1801.9,5.54969357]
[1746045507101,1.09220218,1802.1,1802.0,0.10869841]
[1746045507307,0.7816,1802.1,1802.0,0.10869841]
[1746045508005,1.09265792,1802.1,1802.0,0.10869841]
[1746045508715,6.64174257,1802.1,1801.8,10.35980458]
[1746045509025,6.64174257,1802.1,1801.9,0.10876624]
[1746045509309,0.31105792,1802.0,1801.8,10.35980458]
[1746045509913,5.86053841,1802.0,1801.8,4.81]
[1746045510117,0.31105792,1801.9,1801.8,4.81]
[1746045510421,1.08645792,1801.9,1801.8,4.81]
[1746045511315,1.75005176,1801.9,1801.8,4.81]
[1746045511622,5.55021702,1801.8,1801.5,11.160876]
[1746045511818,5.55021702,1801.8,1801.5,10.360876]
[1746045511991,5.55021702,1801.8,1801.5,4.81]
[1746045512320,11.78853248,1801.9,1801.5,10.36082249]
[1746045512519,0.31105792,1801.7,1801.5,10.36082249]
[1746045513722,0.31105792,1801.6,1801.5,10.36082249]
[1746045514226,0.31105792,1801.8,1801.5,10.36082249]
[1746045514516,7.08241477,1801.8,1801.5,4.81]
[1746045514685,4.48877576,1801.7,1801.5,4.81]
[1746045515178,0.31105792,1801.6,1801.5,10.36083655]
[1746045518016,0.31105792,1801.6,1801.5,11.15303655]
[1746045518722,0.31105792,1801.6,1801.5,11.95303655]
[1746045518899,0.31105792,1801.6,1801.5,13.70344652]
[1746045519290,0.31105792,1801.6,1801.5,13.81345775]
[1746045520626,0.31105792,1801.6,1801.5,12.06304778]
[1746045520827,0.31105792,1801.8,1801.6,5.55040543]
[1746045521126,0.31105792,1801.8,1801.7,0.1098755]
[1746045521515,0.31105792,1801.8,1801.6,5.55040543]
[1746045521714,0.31105792,1801.8,1801.7,5.66154101]
[1746045521910,0.31105792,1801.8,1801.7,0.11122742]
[1746045522316,0.31105792,1801.8,1801.6,5.55040543]
[1746045522515,0.31105792,1801.8,1801.7,0.11122742]
[1746045522894,0.31105792,1801.8,1801.6,5.55040543]
[1746045523096,0.31105792,1801.8,1801.7,0.11122742]
[1746045523535,0.31105792,1801.8,1801.6,5.55040543]
[1746045523695,0.31105792,1801.8,1801.7,0.11122742]
[1746045524033,0.31105792,1801.8,1801.6,5.55040543]
[1746045524237,0.31105792,1801.7,1801.6,5.55040543]
[1746045524830,0.30113747,1801.7,1801.6,5.55040543]
[1746045525335,1.09143747,1801.7,1801.4,5.55104337]
[1746045525632,0.30113747,1801.7,1801.5,5.5507877]
[1746045525820,0.30113747,1801.7,1801.6,5.55062166]
[1746045528416,0.30113747,1801.7,1801.5,5.5507465]
[1746045528617,0.30113747,1801.7,1801.5,11.10146966]
[1746045528954,16.37873303,1801.9,1801.5,5.55072316]
[1746045529156,18.01660633,1801.9,1801.5,5.55072316]
[1746045529324,12.46666821,1801.9,1801.5,5.55072316]
[1746045529837,5.55004335,1801.8,1801.5,5.55072316]
[1746045531453,12.46666821,1801.9,1801.5,11.10144434]
[1746045531620,18.01662691,1801.9,1801.5,5.55072118]
[1746045532240,5.5500283,1801.8,1801.5,5.55072118]
[1746045532738,5.55000728,1801.8,1801.5,5.55072044]
[1746045534223,5.55000728,1801.8,1801.6,0.11129528]
[1746045535810,5.55000728,1801.8,1801.4,16.7252928]
[1746045536010,5.55000728,1801.8,1801.5,0.1109845]
[1746045536213,5.55000728,1801.8,1801.5,5.66181202]
[1746045536651,4.48877576,1801.9,1801.6,0.7996]
[1746045536945,0.31220339,1801.8,1801.7,0.11084878]
[1746045537105,0.31220339,1801.8,1801.7,5.66116237]
[1746045537305,0.31220339,1801.8,1801.6,11.90046659]
[1746045537505,0.31220339,1801.8,1801.7,0.11084878]
[1746045537710,4.48877576,1801.9,1801.7,0.11084878]
[1746045537936,4.48877576,1801.9,1801.6,7.54005041]
[1746045538144,4.48877576,1801.9,1801.8,0.11078093]
[1746045538644,4.80110665,1801.9,1801.8,0.11078093]
[1746045543836,6.39112271,1801.9,1801.6,6.35008063]
[1746045544160,0.31233089,1801.8,1801.7,0.11084878]
[1746045544523,0.31233089,1801.8,1801.5,11.17800799]
[1746045544724,0.31233089,1801.8,1801.7,0.10987527]
[1746045546656,12.5110394,1801.9,1801.8,0.0106029]
[1746045546848,12.82340678,1801.9,1801.8,0.12057257]
[1746045547228,12.76980678,1801.9,1801.8,0.12057257]
[1746045548260,13.17976858,1801.9,1801.8,0.12057257]
[1746045550831,16.17976858,1801.9,1801.8,0.12057257]
[1746045552725,16.1707337,1801.9,1801.8,0.12057257]
[1746045556281,5.5515461,1801.3,1801.2,0.406936]
[1746045556567,9.91071441,1801.3,1801.2,0.406936]
[1746045556789,3.23600369,1801.7,1801.3,5.55150744]
[1746045556790,4.35916831,1801.7,1801.3,5.55150744]
[1746045556946,9.90952343,1801.7,1801.4,0.7832]
[1746045557137,9.90952343,1801.7,1801.4,1.41667074]
[1746045557538,5.55062804,1801.6,1801.4,1.41667074]
[1746045557776,4.35916831,1801.5,1801.2,0.406936]
[1746045557934,0.31214038,1801.4,1801.2,5.95877956]
[1746045558243,0.31214038,1801.4,1801.3,0.8172]
[1746045558469,0.31214038,1801.4,1801.3,6.3687461]
[1746045559040,0.31214038,1801.4,1801.3,0.8172]
[1746045559241,0.31214038,1801.4,1801.3,6.3687461]
[1746045559681,0.30543702,1801.4,1801.2,5.95858698]
[1746045559998,9.91011538,1801.5,1801.2,5.95858698]
[1746045560364,4.35916831,1801.5,1801.2,6.63678568]
[1746045560667,4.35916831,1801.5,1801.3,6.37474341]
[1746045560873,15.460238,1801.7,1801.3,6.37474341]
[1746045561388,15.46022939,1801.7,1801.3,6.37474341]
[1746045561591,5.5506663,1801.6,1801.3,6.37474341]
[1746045561796,5.5506663,1801.6,1801.3,0.8234]
[1746045562652,0.9,1801.5,1801.3,0.8234]
[1746045563293,0.9,1801.5,1801.3,6.37482074]
[1746045563466,0.9,1801.5,1801.3,7.67594258]
[1746045563661,0.9,1801.5,1801.4,5.55123792]
[1746045563867,0.9,1801.5,1801.4,6.32603792]
[1746045565588,0.9,1801.5,1801.4,11.18354343]
[1746045565794,0.9,1801.5,1801.4,12.93164652]
[1746045566153,4.35916831,1802.0,1801.7,5.55005726]
[1746045566357,4.35916831,1802.0,1801.8,0.8209]
[1746045567380,6.30082987,1801.8,1801.3,6.3724315]
[1746045567577,9.90950092,1801.7,1801.3,6.3724315]
[1746045567754,9.90950092,1801.7,1801.4,5.55123385]
[1746045567956,4.35916831,1801.7,1801.4,5.55123385]
[1746045568589,9.90960994,1801.7,1801.3,6.3724315]
[1746045568788,4.35916831,1801.7,1801.4,5.55093027]
[1746045569905,4.35916831,1801.7,1801.4,11.10197534]
[1746045570206,4.35916831,1801.7,1801.4,11.1019799]
[1746045570358,4.35916831,1801.7,1801.4,11.10195533]
[1746045570561,4.35916831,1801.7,1801.4,5.55093027]
[1746045571260,4.35916831,1801.7,1801.4,11.10195793]
[1746045571699,4.35916831,1801.7,1801.5,5.55084851]
[1746045572283,4.35916831,1801.7,1801.4,5.55093027]
[1746045572667,0.31205943,1801.6,1801.4,5.55093027]
[1746045573466,0.31205943,1801.5,1801.4,5.55093027]
[1746045574404,0.31205943,1801.5,1801.4,6.74327327]
[1746045575914,0.31205943,1801.5,1801.4,7.54847327]
[1746045577299,0.31205943,1801.5,1801.4,6.35613027]
[1746045579610,0.31205943,1801.5,1801.4,7.15613027]
[1746045586233,0.31205943,1801.5,1801.4,11.95213027]
[1746045588400,0.31205943,1801.9,1801.8,5.55000555]
[1746045592601,0.31205943,1801.9,1801.7,6.37298259]
[1746045592803,0.31205943,1801.8,1801.7,7.17285594]
[1746045593022,0.31205943,1801.8,1801.7,6.35015594]
[1746045594020,0.31205943,1801.8,1801.7,5.55015594]
[1746045595103,1.06445943,1801.8,1801.5,5.55074609]
[1746045595303,1.72589443,1801.8,1801.5,5.55074609]
[1746045595741,7.27605923,1801.8,1801.4,15.89812327]
[1746045595938,0.31205943,1801.7,1801.4,15.89812327]
[1746045596146,0.31205943,1801.7,1801.5,5.55088433]
[1746045596838,0.31205943,1801.6,1801.5,5.55088433]
[1746045598147,0.31205943,1801.6,1801.4,15.89811367]
[1746045598350,0.31205943,1801.6,1801.4,15.89808011]
[1746045598523,0.31205943,1801.6,1801.5,5.55092978]
[1746045601607,0.31205943,1801.6,1801.4,11.14702767]
[1746045601812,0.30190983,1801.6,1801.4,10.34702767]
[1746045602116,0.7722,1801.7,1801.4,10.34702767]
[1746045602467,6.19950833,1801.7,1801.4,4.796]
[1746045602619,0.8222,1801.6,1801.2,5.201936]
[1746045602947,0.8222,1801.6,1801.4,5.55123243]
[1746045603155,0.8222,1801.6,1801.3,5.55133009]
[1746045603456,0.8222,1801.6,1801.4,5.55122809]
[1746045603754,0.8222,1801.6,1801.3,5.55133009]
[1746045604311,0.8222,1801.6,1801.3,11.10268311]
[1746045604555,0.8222,1801.6,1801.3,5.55133009]
[1746045604730,0.8222,1801.6,1801.3,11.10267963]
[1746045604934,0.8222,1801.6,1801.3,5.55133009]
[1746045605129,0.8222,1801.6,1801.3,11.10265585]
[1746045605324,0.8222,1801.6,1801.4,5.55123392]
[1746045605714,0.8222,1801.6,1801.3,5.55132576]
[1746045606350,0.8222,1801.6,1801.3,11.10266992]
[1746045606558,0.8222,1801.6,1801.3,5.55132576]
[1746045607256,0.8222,1801.6,1801.3,11.10266353]
[1746045607751,0.8222,1801.6,1801.3,5.55132576]
[1746045608551,0.8222,1801.6,1801.3,11.10269927]
[1746045608756,0.8222,1801.6,1801.4,5.55121276]
[1746045609257,0.8222,1801.6,1801.3,5.55132576]
[1746045609747,6.37289252,1801.6,1801.3,5.55132576]
[1746045610120,0.8222,1801.6,1801.3,5.55132576]
[1746045610325,0.8222,1801.6,1801.4,5.55119123]
[1746045612364,0.8222,1801.6,1801.3,5.55132576]
[1746045612527,0.8222,1801.6,1801.4,5.55113734]
[1746045613274,0.8222,1801.6,1801.3,5.55132576]
[1746045613673,0.8222,1801.6,1801.4,5.55115636]
[1746045613967,0.8222,1801.6,1801.4,5.55102798]
[1746045614200,5.16846831,1802.1,1801.8,5.54971056]
[1746045614371,5.16846831,1802.1,1801.9,5.5495851]
[1746045614574,0.8093,1802.2,1801.9,5.5495851]
[1746045614783,0.31176808,1802.1,1802.0,0.8164]
[1746045615300,0.31176808,1802.1,1802.0,6.36578956]
[1746045615667,0.31176808,1802.1,1802.0,0.8164]
[1746045615858,0.31176808,1802.1,1801.9,5.54952619]
[1746045616260,0.31176808,1802.0,1801.9,5.54952619]
[1746045616460,0.31176808,1802.0,1801.9,6.74016094]
[1746045616689,0.31176808,1802.0,1801.9,1.19063475]
[1746045616900,0.31176808,1802.0,1801.9,6.74033229]
[1746045624810,0.31176808,1802.0,1801.9,7.55562173]
[1746045625171,0.31176808,1802.0,1801.9,7.50013229]
[1746045625384,4.35916831,1802.3,1802.1,5.54888055]
[1746045625613,4.35916831,1802.3,1802.2,5.54877372]
[1746045625774,4.35916831,1802.4,1802.2,5.54877372]
[1746045625975,4.35916831,1802.4,1802.2,6.30839508]
[1746045626189,4.35916831,1802.4,1802.3,5.54846584]
[1746045626373,0.5,1802.5,1802.3,11.09693168]
[1746045626573,0.5,1802.5,1802.3,6.73413901]
[1746045627006,0.5,1802.5,1802.3,6.73397912]
[1746045627275,0.31101674,1802.4,1802.3,6.73397912]
[1746045627983,0.5,1802.5,1802.4,5.54815801]
[1746045629111,0.81075927,1802.5,1802.4,5.54815801]
[1746045629279,0.81075927,1802.5,1802.4,6.77637172]
[1746045630889,0.5,1802.5,1802.4,6.77637172]
[1746045632316,0.5,1802.5,1802.4,7.02186787]
[1746045634692,0.5,1802.5,1802.4,7.82186787]
[1746045637884,0.5,1802.5,1802.4,6.09365416]
[1746045649534,0.5,1802.5,1802.4,0.24549615]
[1746045649535,0.751,1802.5,1802.4,0.24549615]
[1746045649693,11.84700237,1802.5,1802.1,10.33695284]
[1746045649893,0.751,1802.4,1802.2,0.23937751]
[1746045650092,6.29930057,1802.4,1802.2,0.23937751]
[1746045650321,7.19930057,1802.4,1802.2,0.23937751]
[1746045650526,0.71993006,1802.3,1802.2,0.23937751]
[1746045650744,1.03149119,1802.3,1802.2,0.23937751]
[1746045651228,0.31156113,1802.3,1802.2,5.78815123]
[1746045651835,0.31156113,1802.3,1802.2,0.23937751]
[1746045652026,0.31156113,1802.3,1802.2,5.78815123]
[1746045652228,0.31156113,1802.3,1802.2,0.23937751]
[1746045653321,5.86002697,1802.3,1802.2,0.23937751]
[1746045653526,11.10655076,1802.3,1802.2,0.23937751]
[1746045653725,11.10655076,1802.3,1801.8,28.66293493]
[1746045653726,6.32874788,1802.2,1801.8,28.66293493]
[1746045653939,4.35916831,1802.1,1801.8,10.32893493]
[1746045654135,4.35916831,1802.1,1801.9,5.54968646]
[1746045654338,0.31156113,1802.0,1801.9,5.54968646]
[1746045655949,0.31156113,1802.0,1801.8,10.32881334]
[1746045656628,0.31156113,1801.9,1801.8,10.32881334]
[1746045656825,1.12876113,1801.9,1801.8,4.779]
[1746045657651,11.03783984,1801.9,1801.6,0.8]
[1746045657852,11.03783984,1801.9,1801.5,10.32978333]
[1746045658071,16.58778694,1801.9,1801.5,10.32978333]
[1746045658247,12.74332583,1801.9,1801.5,16.68051611]
[1746045658447,0.31156113,1801.8,1801.5,16.68051611]
[1746045658642,0.31156113,1801.8,1801.5,11.1297304]
[1746045659074,0.31156113,1801.7,1801.5,16.68048774]
[1746045659367,0.31156113,1801.7,1801.5,11.1297304]
[1746045659861,12.4317647,1801.9,1801.5,11.1297304]
[1746045660232,0.9,1801.8,1801.5,11.12972249]
[1746045660431,0.9,1801.8,1801.6,5.55061182]
[1746045661577,0.9,1801.8,1801.5,5.579]
[1746045661578,0.9,1801.8,1801.5,11.12978298]
[1746045661740,0.31106743,1801.7,1801.5,11.12977316]
[1746045662479,0.9,1801.8,1801.5,11.12977316]
[1746045663000,12.4317647,1801.9,1801.5,11.12977316]
[1746045663179,5.55000732,1801.8,1801.5,11.12977316]
[1746045663336,5.86078986,1801.8,1801.5,11.12977316]
[1746045664039,0.31078254,1801.8,1801.5,11.12972912]
[1746045664277,12.4317647,1801.9,1801.5,11.12972912]